[Event "German Bundesliga 2024-25"]
[Site "Germany"]
[Date "2024.11.30"]
[Round "3.5"]
[White "Markus, Robert"]
[Black "Stojanovic, Dalibor"]
[Result "1/2-1/2"]
[Annotator "TA"]
[ECO "E62"]
[WhiteElo "2592"]
[BlackElo "2446"]
[PlyCount "46"]
[EventDate "2024.09.27"]
[EventType "team-tourn"]
[EventCountry "GER"]
[SourceTitle "playchess.com"]
[Source "ChessBase"]
[SourceQuality "1"]
[WhiteTeam "Kirchweyhe"]
[BlackTeam "Deggendorf"]
[TimeControl "40/5400+30:1800+30"]

{[%evp 16,46,35,16,44,31,43,44,37,44,53,32,33,42,44,47,35,10,9,14,12,14,10,13,11,10,10,10,30,4,8,5,32]} 1. d4 {[%emt 0:00:05]} Nf6 {[%emt 0:00:26]} 2. c4 {[%emt 0:00:12]} g6 {[%emt 0:01:23]} 3. Nf3 {[%emt 0:01:33]} Bg7 {[%emt 0:00:26]} 4. g3 {[%emt 0:01:08]} O-O {[%emt 0:01:51]} 5. Bg2 {[%emt 0:00:33]} d6 {[%emt 0:02:19][%cal Bd7d6,Bd6e5,Be5e4][%mdl 32]} 6. Nc3 {[%emt 0:01:00]} Nc6 {[%emt 0:03:02]} 7. O-O {[%emt 0:02:11]} e5 {[%emt 0:04:41]} 8. dxe5 {[%emt 0:05:13]} dxe5 {[%emt 0:00:43]} 9. Bg5 {[%emt 0:01:18][%cal Bc1g5,Bg5e3,Be3d4][%mdl 32]} Qxd1 {[%emt 0:08:32]} 10. Rfxd1 {[%emt 0:01:04]} h6 {[%emt 0:01:36]} 11. Be3 {[%emt 0:08:58]} Be6 {[%emt 0:13:44] White is slightly better.} 12. b3 {[%emt 0:10:16]} e4 {[%emt 0:11:09]} 13. Nd4 {[%emt 0:08:37]} Nxd4 {[%emt 0:06:35]} 14. Bxd4 {[%emt 0:00:11]} Bf5 {[%emt 0:00:05]} 15. h3 {[%emt 0:06:40]} h5 {[%emt 0:02:10]} 16. f3 {[%emt 0:04:04]} Rfe8 {[%emt 0:05:27]} 17. g4 {[%emt 0:04:38]} exf3 $1 {[%emt 0:02:19]} 18. exf3 {[%emt 0:00:29]} Be6 {[%emt 0:00:07]} 19. Rd3 {[%emt 0:04:31]} Rad8 {[%emt 0:03:58] [#] ...c5 would now be deadly.} 20. Rad1 {[%emt 0:00:30]} a6 {[%emt 0:00:30] Repels Nb5} 21. Kf2 {[%emt 0:02:47]} hxg4 {[%emt 0:02:33]} 22. hxg4 {[%emt 0:00:07]} c6 {[%emt 0:00:44]} 23. Bf1 {[%emt 0:00:18]} Bc8 {[%emt 0:00:32] Weighted Error Value: White=0.04 (flawless) /Black=0.05 (flawless) .  Inaccurate:     	White=1     	Black=1      OK:         	White=5     	Black=4      Best:        	White=1     	Black=2      Strong:       	---       	Black=1} 1/2-1/2

[Event "German Bundesliga 2024-25"]
[Site "Germany"]
[Date "2024.11.30"]
[Round "3.5"]
[White "Michalik, Peter"]
[Black "Kamsky, Gata"]
[Result "1/2-1/2"]
[Annotator "RC"]
[ECO "E73"]
[WhiteElo "2562"]
[BlackElo "2609"]
[PlyCount "46"]
[EventDate "2024.09.27"]
[EventType "team-tourn"]
[EventCountry "GER"]
[SourceTitle "playchess.com"]
[Source "ChessBase"]
[SourceQuality "1"]
[WhiteTeam "TU Dresden"]
[BlackTeam "Deizisau"]
[TimeControl "40/5400+30:1800+30"]

1. d4 {[%emt 0:00:09]} Nf6 {[%emt 0:03:23]} 2. c4 {[%emt 0:00:07]} g6 {[%emt 0:01:01]} 3. Nc3 {[%emt 0:00:27]} Bg7 {[%emt 0:00:11]} 4. e4 {[%emt 0:00:08]} d6 {[%emt 0:00:06]} 5. Be2 {[%emt 0:00:39]} e5 {[%emt 0:01:59]} 6. dxe5 {[%emt 0:00:38]} dxe5 {[%emt 0:00:05]} 7. Qxd8+ {[%emt 0:00:08]} Kxd8 {[%emt 0:00:03]} 8. f4 {[%emt 0:00:13]} Nc6 {[%emt 0:11:43]} 9. Nf3 {[%emt 0:01:49]} Be6 {[%emt 0:08:23]} 10. O-O {[%emt 0:01:41]} h6 {[%emt 0:02:50]} 11. f5 {[%emt 0:00:22]} gxf5 {[%emt 0:09:34]} 12. exf5 {[%emt 0:00:09]} Bd7 {[%emt 0:00:03]} 13. Be3 {[%emt 0:00:31]} Re8 {[%emt 0:05:47]} 14. h3 {[%emt 0:18:24]} Kc8 {[%emt 0:09:13]} 15. g4 {[%emt 0:05:15]} e4 {[%emt 0:01:20]} 16. Nd2 {[%emt 0:00:32]} Nb4 {[%emt 0:02:12]} 17. Rac1 {[%emt 0:01:55]} a5 {[%emt 0:02:26]} 18. Rfd1 {[%emt 0:13:28]} Bc6 {[%emt 0:02:50]} 19. Bd4 {[%emt 0:03:41]} Rd8 {[%emt 0:01:58]} 20. Be5 {[%emt 0:06:23]} Re8 {[%emt 0:00:15]} 21. Bd4 {[%emt 0:00:10]} Rd8 {[%emt 0:00:06]} 22. Be5 {[%emt 0:00:35]} Re8 {[%emt 0:00:06]} 23. Bd4 {[%emt 0:00:08]} Rd8 {[%emt 0:00:36]} 1/2-1/2

[Event "German Bundesliga 2024-25"]
[Site "Germany"]
[Date "2024.11.30"]
[Round "3.5"]
[White "Van Foreest, Lucas"]
[Black "Kraus, Tomas"]
[Result "1/2-1/2"]
[Annotator "TA"]
[ECO "A07"]
[WhiteElo "2520"]
[BlackElo "2457"]
[PlyCount "45"]
[EventDate "2024.09.27"]
[EventType "team-tourn"]
[EventCountry "GER"]
[SourceTitle "playchess.com"]
[Source "ChessBase"]
[SourceQuality "1"]
[WhiteTeam "Werder Bremen"]
[BlackTeam "Heimbach-Weis-Neuwied"]
[TimeControl "40/5400+30:1800+30"]

{[%evp 21,45,10,15,0,1,0,1,0,0,0,0,0,0,0,7,0,14,0,0,0,2,0,0,0,7,-31]} 1. Nf3 {[%emt 0:00:07]} d5 {[%emt 0:01:51]} 2. g3 {[%emt 0:00:20]} b6 {[%emt 0:01:19]} 3. Bg2 {[%emt 0:01:39]} Bb7 {[%emt 0:00:07]} 4. O-O {[%emt 0:00:07]} Nd7 {[%emt 0:00:45]} 5. c4 {[%emt 0:08:44]} dxc4 {[%emt 0:01:01]} 6. Na3 {[%emt 0:00:00]} Ngf6 {[%emt 0:13:16]} 7. Nxc4 {[%emt 0:00:00]} e6 {[%emt 0:01:41]} 8. b3 {[%emt 0:10:35]} Be7 {[%emt 0:01:09]} 9. Bb2 {[%emt 0:00:07]} O-O {[%emt 0:00:17]} 10. d4 {[%emt 0:01:02]} c5 {[%emt 0:04:44]} 11. Rc1 {[%emt 0:06:29]} Rc8 {[%emt 0:01:54] The position is equal.} 12. Qd3 {[%emt 0:08:18]} Be4 {[%emt 0:04:36]} 13. Qe3 {[%emt 0:01:35]} Qc7 {[%emt 0:13:11]} 14. Nce5 {[%emt 0:04:56]} Qb7 {[%emt 0:02:51]} 15. Nxd7 {[%emt 0:06:02]} Nxd7 {[%emt 0:01:51]} 16. dxc5 {[%emt 0:01:08]} Nxc5 {[%emt 0:04:42]} 17. Rfd1 {[%emt 0:01:51]} a5 {[%emt 0:03:44]} 18. Qf4 {[%emt 0:01:05]} f6 {[%emt 0:09:57]} 19. Qg4 {[%emt 0:02:05]} Bf5 {[%emt 0:05:34]} 20. Qh4 {[%emt 0:04:04]} Be4 {[%emt 0:01:36]} 21. Qg4 {[%emt 0:01:52]} Bf5 {[%emt 0:00:13]} 22. Qh4 {[%emt 0:00:11] Threatening Nd4.} Be4 {[%emt 0:00:07]} 23. Qg4 {[%emt 0:00:27] An uneventful encounter.   Weighted Error Value: White=0.03 (flawless) /Black=0.02 (flawless) .  Inaccurate:     	White=1     	---        OK:         	White=6     	Black=4} 1/2-1/2

[Event "German Bundesliga 2024-25"]
[Site "Germany"]
[Date "2024.11.30"]
[Round "3.5"]
[White "Papp, Gabor"]
[Black "Sindarov, Javokhir"]
[Result "0-1"]
[Annotator "RC"]
[ECO "C55"]
[WhiteElo "2511"]
[BlackElo "2682"]
[PlyCount "120"]
[EventDate "2024.09.27"]
[EventType "team-tourn"]
[EventCountry "GER"]
[SourceTitle "playchess.com"]
[Source "ChessBase"]
[SourceQuality "1"]
[WhiteTeam "Hamburg"]
[BlackTeam "Duesseldorf"]
[TimeControl "40/5400+30:1800+30"]

1. e4 {[%emt 0:00:05]} e5 {[%emt 0:00:06]} 2. Nf3 {[%emt 0:00:05]} Nc6 {[%emt 0:00:05]} 3. Bc4 {[%emt 0:00:14]} Nf6 {[%emt 0:00:06]} 4. d3 {[%emt 0:00:06]} h6 {[%emt 0:00:05]} 5. O-O {[%emt 0:00:54]} d6 {[%emt 0:00:06]} 6. c3 {[%emt 0:00:23]} g5 {[%emt 0:00:05]} 7. Nbd2 {[%emt 0:00:50]} Bg7 {[%emt 0:00:07]} 8. Bb3 {[%emt 0:00:37]} O-O {[%emt 0:01:34]} 9. h3 {[%emt 0:00:36]} a5 {[%emt 0:02:06]} 10. a4 {[%emt 0:02:53]} Ne7 {[%emt 0:00:38]} 11. Nc4 {[%emt 0:01:54]} Ng6 {[%emt 0:00:48]} 12. Ne3 {[%emt 0:01:58]} Re8 {[%emt 0:05:16]} 13. Nh2 {[%emt 0:04:00]} c6 {[%emt 0:07:29]} 14. Nhg4 {[%emt 0:04:33]} Nf4 {[%emt 0:12:50]} 15. Kh2 {[%emt 0:19:42]} d5 {[%emt 0:07:11]} 16. g3 {[%emt 0:09:40]} dxe4 {[%emt 0:03:01]} 17. gxf4 {[%emt 0:03:12]} exf4 {[%emt 0:00:20]} 18. Nxf6+ {[%emt 0:20:58]} Qxf6 {[%emt 0:00:18]} 19. Ng4 {[%emt 0:00:04]} Qg6 {[%emt 0:00:51]} 20. dxe4 {[%emt 0:04:42]} h5 {[%emt 0:00:07]} 21. f3 {[%emt 0:00:41]} hxg4 {[%emt 0:00:54]} 22. hxg4 {[%emt 0:00:05]} Be6 {[%emt 0:01:54]} 23. Bxe6 {[%emt 0:02:45]} Rxe6 {[%emt 0:00:05]} 24. Bd2 {[%emt 0:00:31]} Rd8 {[%emt 0:00:20]} 25. Qe2 {[%emt 0:00:19]} Red6 {[%emt 0:02:40]} 26. Rfd1 {[%emt 0:02:34]} Be5 {[%emt 0:17:59]} 27. Be1 {[%emt 0:01:33]} Kg7 {[%emt 0:07:50]} 28. Rxd6 {[%emt 0:00:57]} Qxd6 {[%emt 0:00:16]} 29. Kg1 {[%emt 0:02:59]} Rh8 {[%emt 0:05:13]} 30. Rd1 {[%emt 0:03:49]} Qh6 {[%emt 0:00:05]} 31. Qg2 {[%emt 0:00:16]} Qe6 {[%emt 0:00:05]} 32. Qc2 {[%emt 0:02:09]} Bc7 {[%emt 0:02:32]} 33. Bf2 {[%emt 0:00:44]} Rh3 {[%emt 0:00:50]} 34. Qd3 {[%emt 0:02:07]} Qh6 {[%emt 0:02:11]} 35. Kf1 {[%emt 0:00:31]} Rh2 {[%emt 0:05:39]} 36. Qd4+ {[%emt 0:00:11]} Kg8 {[%emt 0:00:01]} 37. Ke2 {[%emt 0:02:53]} Qe6 {[%emt 0:01:16]} 38. Qc5 {[%emt 0:03:09]} Kh7 {[%emt 0:00:12]} 39. Rd2 {[%emt 0:01:52]} Be5 {[%emt 0:00:51]} 40. b3 {[%emt 0:02:18]} Bf6 {[%emt 0:11:35]} 41. c4 {[%emt 0:07:11]} Be7 {[%emt 0:00:14]} 42. Qxa5 {[%emt 0:01:05]} b5 {[%emt 0:00:12]} 43. Kd1 {[%emt 0:09:10]} bxc4 {[%emt 0:01:36]} 44. Bd4 {[%emt 0:04:04]} Rh1+ {[%emt 0:00:14]} 45. Kc2 {[%emt 0:00:05]} cxb3+ {[%emt 0:00:30]} 46. Kb2 {[%emt 0:00:10]} Qd6 {[%emt 0:06:01]} 47. Kxb3 {[%emt 0:05:58]} Qa3+ {[%emt 0:00:31]} 48. Kc4 {[%emt 0:00:02]} Bd8 {[%emt 0:06:57]} 49. Qb4 {[%emt 0:03:08]} Qxf3 {[%emt 0:00:35]} 50. Qb2 {[%emt 0:00:54]} Qxg4 {[%emt 0:02:26]} 51. Rh2+ {[%emt 0:00:06]} Rxh2 {[%emt 0:00:09]} 52. Qxh2+ {[%emt 0:00:04]} Qh4 {[%emt 0:01:33]} 53. Qxh4+ {[%emt 0:00:19]} gxh4 {[%emt 0:00:06]} 54. Kd3 {[%emt 0:01:48]} h3 {[%emt 0:01:03]} 55. Bg1 {[%emt 0:00:04]} f3 {[%emt 0:00:42]} 56. Bh2 {[%emt 0:00:05]} Bb6 {[%emt 0:00:08]} 57. a5 {[%emt 0:00:23]} Bxa5 {[%emt 0:00:09]} 58. Ke3 {[%emt 0:00:05]} Bc3 {[%emt 0:00:14]} 59. Kxf3 {[%emt 0:00:05]} f6 {[%emt 0:00:05]} 60. Kg4 {[%emt 0:01:21]} Be5 {[%emt 0:01:09]} 0-1

[Event "German Bundesliga 2024-25"]
[Site "Germany"]
[Date "2024.11.30"]
[Round "3.6"]
[White "Van Foreest, Jorden"]
[Black "Costa, Leonardo"]
[Result "1-0"]
[Annotator "TA"]
[ECO "C54"]
[WhiteElo "2687"]
[BlackElo "2501"]
[PlyCount "77"]
[EventDate "2024.09.27"]
[EventType "team-tourn"]
[EventCountry "GER"]
[SourceTitle "playchess.com"]
[Source "ChessBase"]
[SourceQuality "1"]
[WhiteTeam "Duesseldorf"]
[BlackTeam "Hamburg"]
[TimeControl "40/5400+30:1800+30"]

{[%evp 10,77,18,15,22,7,27,12,24,0,9,0,12,4,28,23,46,39,48,33,46,34,41,39,35,42,61,55,56,75,82,68,64,75,76,70,58,20,50,0,29,0,36,37,83,90,89,81,76,69,67,18,61,0,-12,-15,537,555,940,914,922,922,902,444,932,912,956,941,892,836]} 1. e4 {[%emt 2:53:09]} e5 {[%emt 0:00:07]} 2. Nf3 {[%emt 0:00:09]} Nc6 {[%emt 0:00:04]} 3. Bc4 {[%emt 0:00:22]} Bc5 {[%emt 0:00:05]} 4. c3 {[%emt 0:00:46]} Nf6 {[%emt 0:00:06]} 5. d3 {[%emt 0:00:23]} d6 {[%emt 0:00:05]} 6. O-O {[%emt 0:00:57]} a5 {[%emt 0:00:03]} 7. Re1 {[%emt 0:08:31]} Ba7 {[%emt 0:00:06]} 8. Bb3 {[%emt 0:00:11]} O-O {[%emt 0:00:06] The position is equal.} 9. h3 {[%emt 0:00:22]} h6 {[%emt 0:00:04]} 10. Nbd2 {[%emt 0:00:03][%cal Bb1d2,Bd2f1,Bf1g3,Bg3f5][%mdl 32]} Be6 {[%emt 0:03:36]} 11. Ba4 {[%emt 0:01:15]} Qb8 {[%emt 0:15:21]} 12. Nf1 {[%emt 0:00:30]} b5 {[%emt 0:01:19][%cal Bb7b5,Bb5b4][%mdl 32]} 13. Bc2 {[%emt 0:00:13]} Ne7 {[%emt 0:08:36]} 14. d4 {[%emt 0:01:19]} Ng6 {[%emt 0:00:35]} 15. a4 {[%emt 0:05:17]} b4 {[%emt 0:02:14]} 16. Ng3 {[%emt 0:01:13]} Re8 {[%emt 0:13:53]} 17. Be3 {[%emt 0:03:19]} c6 {[%emt 0:01:44]} 18. Qd2 {[%emt 0:03:56][%cal Oe3h6]} bxc3 {[%emt 0:01:31]} 19. bxc3 {[%emt 0:00:13][%cal Oe3h6]} Qc7 {[%emt 0:00:03]} 20. Nf5 {[%emt 0:08:38][%cal Oe3h6]} exd4 {[%emt 0:28:12]} 21. cxd4 {[%emt 0:15:24][%cal Oe3h6] [#] And now Bxh6! would win.} Bxf5 {[%emt 0:03:11]} 22. exf5 {[%emt 0:00:39]} Nf8 {[%emt 0:00:32][%cal Bg6f8,Bf8h7,Bh7f6][%mdl 32]} 23. g4 {[%emt 0:13:49][%cal Oe3h6,Bg2g4,Bg4g5][%mdl 32] Bxh6! is the strong threat.} N8h7 {[%emt 0:04:40]} 24. Bf4 {[%emt 0:01:39]} (24. Kg2 $14) 24... Rab8 {[%emt 0:04:38]} 25. Kg2 {[%emt 0:02:19]} Nd5 {[%emt 0:01:07]} 26. h4 {[%emt 0:02:11]} Nxf4+ {[%emt 0:04:35]} (26... c5 $14) 27. Qxf4 $16 {[%emt 0:00:06]} Nf6 {[%emt 0:00:04]} 28. g5 {[%emt 0:01:41]} Nd5 {[%emt 0:00:04]} 29. Qg3 $36 {[%emt 0:00:04][%mdl 2048] Black is under pressure.} h5 $1 {[%emt 0:02:42]} 30. Bb3 {[%emt 0:01:45]} Ne3+ {[%emt 0:04:42]} (30... Rxe1 $2 31. Rxe1 g6 (31... Rxb3 32. Re8+ Kh7 33. g6+ fxg6 34. Qxg6#) 32. Bxd5 cxd5 33. fxg6 $18) 31. fxe3 {[%emt 0:04:47]} (31. Rxe3 $14 Rxe3 32. fxe3 (32. Bxf7+ Qxf7 33. fxe3 Rb2+ 34. Kg1 Qxf5 $11) 32... Rxb3 33. g6 fxg6 (33... Rxe3 $2 34. Qg5 $18) 34. Qxg6) 31... Rxb3 $11 {[%emt 0:00:04]} 32. g6 $1 {[%emt 0:00:21]} Re4 $2 {[%emt 0:00:44][%mdl 8192] This move loses the game for Black.} (32... Rexe3 $2 33. Qg5 Rb2+ (33... Rxf3 34. Re8#) 34. Kh1 Bxd4 35. Qxh5 (35. Rxe3 Bxe3 36. Qxe3 Qd7 $18) (35. Nxd4 d5 $18) 35... fxg6 36. fxg6 $18) (32... Rbxe3 $2 33. Rxe3 Rxe3 34. Qg5 $18) (32... Rb2+ $11 {and Black has nothing to worry.} 33. Kh3 fxg6 34. Qxg6 Qf7) 33. Ng5 $1 $18 {[%emt 0:00:52][%csl LRe4,LRf7] White is clearly winning.} Qe7 {[%emt 0:01:33] [#] Strongly threatening ...Rg4.} 34. gxf7+ {[%emt 0:05:38]} Kf8 {[%emt 0:00:03]} 35. Nh7+ {[%emt 0:01:04]} (35. Ne6+ Rxe6 36. fxe6 Qxe6 $16) 35... Kxf7 {[%emt 0:00:04]} 36. Qg6+ {[%emt 0:00:45]} Kg8 {[%emt 0:00:03]} 37. f6 {[%emt 0:00:45][%cal Bf5f6,Bf6f7][%mdl 32]} (37. Qxh5 $2 {perishes.} Rxh4 (37... Rexe3 $2 {is the wrong capture.} 38. Ng5 $18) 38. Qg5 Qxg5+ 39. Nxg5 Rg4+ 40. Kf3 Rxg5 $19) 37... Rb2+ {[%emt 0:01:54]} 38. Kf3 {[%emt 0:00:57]} Qd7 {[%emt 0:00:39]} 39. f7+ {[%emt 0:00:10] Weighted Error Value: White=0.13 (very precise) /Black=0.32.  Loses game:     	---       	Black=1      Mistake:       	White=3     	Black=1      Inaccurate:     	White=2     	Black=4      OK:         	White=9     	Black=12     Best:        	White=2     	Black=1      Strong:       	White=1     	Black=1} (39. Qxe4 $2 {leads to mate.} Qh3+ 40. Kf4 Qg4#) 1-0

[Event "German Bundesliga 2024-25"]
[Site "Germany"]
[Date "2024.11.30"]
[Round "3.6"]
[White "Banusz, Tamas"]
[Black "Hoffmann, Paul"]
[Result "1-0"]
[Annotator "RC"]
[ECO "A07"]
[WhiteElo "2576"]
[BlackElo "2375"]
[PlyCount "49"]
[EventDate "2024.09.27"]
[EventType "team-tourn"]
[EventCountry "GER"]
[SourceTitle "playchess.com"]
[Source "ChessBase"]
[SourceQuality "1"]
[WhiteTeam "Deizisau"]
[BlackTeam "TU Dresden"]
[TimeControl "40/5400+30:1800+30"]

1. Nf3 {[%emt 0:00:05]} Nf6 {[%emt 0:00:07]} 2. g3 {[%emt 0:00:12]} e6 {[%emt 0:00:13]} 3. Bg2 {[%emt 0:00:12]} d5 {[%emt 0:00:11]} 4. O-O {[%emt 0:00:20]} Be7 {[%emt 0:00:31]} 5. d3 {[%emt 0:00:15]} O-O {[%emt 0:00:16]} 6. Bf4 {[%emt 0:00:12]} Nh5 {[%emt 0:15:11]} 7. Bd2 {[%emt 0:01:57]} f5 {[%emt 0:14:23]} 8. c4 {[%emt 0:05:10]} c6 {[%emt 0:11:22]} 9. Bc3 {[%emt 0:03:48]} Nf6 {[%emt 0:02:23]} 10. Nbd2 {[%emt 0:02:34]} c5 {[%emt 0:01:59]} 11. e3 {[%emt 0:05:12]} Nc6 {[%emt 0:01:22]} 12. d4 {[%emt 0:00:38]} dxc4 {[%emt 0:20:30]} 13. dxc5 {[%emt 0:03:45]} Nd5 {[%emt 0:04:43]} 14. Bd4 {[%emt 0:04:39]} Nxd4 {[%emt 0:08:05]} 15. exd4 {[%emt 0:01:12]} b5 {[%emt 0:01:20]} 16. a4 {[%emt 0:06:36]} Ba6 {[%emt 0:08:58]} 17. Re1 {[%emt 0:04:02]} Rf6 {[%emt 0:00:37]} 18. Ne5 {[%emt 0:05:40]} Rc8 {[%emt 0:03:27]} 19. axb5 {[%emt 0:01:09]} Bxb5 {[%emt 0:00:02]} 20. Ndxc4 {[%emt 0:00:45]} f4 {[%emt 0:00:30]} 21. Rxa7 {[%emt 0:01:29]} fxg3 {[%emt 0:01:29]} 22. hxg3 {[%emt 0:01:11]} Rxc5 {[%emt 0:00:47]} 23. Rxe7 {[%emt 0:04:21]} Qxe7 {[%emt 0:01:33]} 24. dxc5 {[%emt 0:00:42]} Qxc5 {[%emt 0:00:03]} 25. Ne3 {[%emt 0:01:00]} 1-0

[Event "German Bundesliga 2024-25"]
[Site "Germany"]
[Date "2024.11.30"]
[Round "3.6"]
[White "Kosakowski, Jakub"]
[Black "Hracek, Zbynek"]
[Result "1/2-1/2"]
[Annotator "TA"]
[ECO "C45"]
[WhiteElo "2516"]
[BlackElo "2541"]
[PlyCount "40"]
[EventDate "2024.09.27"]
[EventType "team-tourn"]
[EventCountry "GER"]
[SourceTitle "playchess.com"]
[Source "ChessBase"]
[SourceQuality "1"]
[WhiteTeam "Heimbach-Weis-Neuwied"]
[BlackTeam "Werder Bremen"]
[TimeControl "40/5400+30:1800+30"]

{[%evp 16,40,2,3,7,6,16,4,34,0,17,0,0,0,0,0,0,0,0,0,0,0,0,0,0,4,18]} 1. e4 {[%emt 0:00:07]} e5 {[%emt 0:00:04]} 2. Nf3 {[%emt 0:00:16]} Nc6 {[%emt 0:00:06]} 3. d4 {[%emt 0:01:08]} exd4 {[%emt 0:00:10]} 4. Nxd4 {[%emt 0:00:05]} Nf6 {[%emt 0:00:07]} 5. Nxc6 {[%emt 0:00:10]} bxc6 {[%emt 0:00:06]} 6. Bd3 {[%emt 0:03:42]} d5 {[%emt 0:00:38]} 7. exd5 {[%emt 0:00:13]} cxd5 {[%emt 0:00:02]} 8. O-O {[%emt 0:00:40]} Be7 {[%emt 0:00:16]} 9. c4 {[%emt 0:00:14]} d4 {[%emt 0:00:11]} 10. Bg5 {[%emt 0:00:26]} O-O {[%emt 0:02:45]} 11. Nd2 {[%emt 0:00:37][%cal Ob2b4]} Rb8 {[%emt 0:02:15]} 12. Rb1 {[%emt 0:00:44]} Re8 {[%emt 0:15:07] The position is equal.} 13. Bxf6 {[%emt 0:05:22]} Bxf6 {[%emt 0:00:05]} 14. b4 {[%emt 0:00:12]} Bb7 {[%emt 0:19:49]} 15. Qc2 {[%emt 0:09:00]} g6 {[%emt 0:06:53]} 16. Rfe1 {[%emt 0:09:31]} Rxe1+ {[%emt 0:09:32]} 17. Rxe1 {[%emt 0:00:06]} c5 {[%emt 0:01:09]} 18. bxc5 {[%emt 0:10:00]} Bc6 {[%emt 0:17:25] Against Qa4. A strong pair of Bishops.} 19. Rb1 {[%emt 0:16:11]} Rxb1+ {[%emt 0:01:14]} 20. Qxb1 {[%emt 0:01:42]} Qa5 {[%emt 0:00:19][%csl LRc5,LRd2] A rather calm draw.   Weighted Error Value: White=0.05 (flawless) /Black=0.05 (flawless) .  Inaccurate:     	White=1     	Black=1      OK:         	White=5     	Black=6} 1/2-1/2

[Event "German Bundesliga 2024-25"]
[Site "Germany"]
[Date "2024.11.30"]
[Round "3.6"]
[White "Tilicheev, Viacheslav"]
[Black "Stevic, Hrvoje"]
[Result "1/2-1/2"]
[Annotator "TA"]
[ECO "D20"]
[WhiteElo "2437"]
[BlackElo "2548"]
[PlyCount "54"]
[EventDate "2024.09.27"]
[EventType "team-tourn"]
[EventCountry "GER"]
[SourceTitle "playchess.com"]
[Source "ChessBase"]
[SourceQuality "1"]
[WhiteTeam "Deggendorf"]
[BlackTeam "Kirchweyhe"]
[TimeControl "40/5400+30:1800+30"]

{[%evp 14,54,34,17,22,9,17,30,12,19,12,0,0,0,0,0,0,0,0,0,0,0,0,0,0,0,0,0,0,0,0,0,0,0,0,0,0,0,0,0,0,0,312]} 1. d4 {[%emt 0:00:04]} d5 {[%emt 0:00:16][%cal Bd7d5,Bd5c4][%mdl 32]} 2. c4 {[%emt 0:00:14]} dxc4 {[%emt 0:01:22]} 3. e4 {[%emt 0:01:15]} e5 {[%emt 0:01:32]} 4. Nf3 {[%emt 0:00:14]} Bb4+ {[%emt 0:01:23]} 5. Bd2 {[%emt 0:06:19]} Bxd2+ {[%emt 0:00:19]} 6. Nbxd2 {[%emt 0:00:10]} exd4 {[%emt 0:00:16]} 7. Bxc4 {[%emt 0:00:14]} Nc6 {[%emt 0:02:56]} 8. O-O {[%emt 0:02:11][%mdl 1024] White has compensation.} Nge7 {[%emt 0:02:32]} 9. Ng5 {[%emt 0:11:32]} Ne5 {[%emt 0:00:15]} 10. Bb3 $1 {[%emt 0:00:25]} N7c6 {[%emt 0:07:26] White has an edge.} 11. f4 {[%emt 0:05:04][%cal Od2f3] The position is equal.} Bg4 {[%emt 0:03:41]} 12. Qe1 {[%emt 0:06:26][%cal Oe1g3] [#] aiming for Qg3!} h6 $1 {[%emt 0:01:35]} 13. Qg3 {[%emt 0:01:45]} hxg5 {[%emt 0:02:50]} 14. fxe5 {[%emt 0:00:12]} Be6 {[%emt 0:01:03]} 15. Bxe6 {[%emt 0:00:39]} fxe6 {[%emt 0:00:07]} 16. Nf3 {[%emt 0:03:55]} Qe7 {[%emt 0:07:02]} 17. Nxg5 {[%emt 0:00:46] [#] Rf7 is the strong threat.} Rh5 $1 {[%emt 0:00:15]} 18. Qb3 {[%emt 0:10:49][%csl LRb7,LRe6]} Qxg5 {[%emt 0:08:52]} (18... Rxg5 $6 19. Qxb7 Rd8 20. Qxc6+ Qd7 21. Qc1 $16) 19. Qxb7 {[%emt 0:01:10]} Qe3+ {[%emt 0:01:22]} 20. Kh1 {[%emt 0:03:51] Dancing on a razor blade.} Nd8 {[%emt 0:05:30]} 21. Qxa8 {[%emt 0:00:36] Black must now prevent Rf3.} Qh6 $1 {[%emt 0:01:53]} 22. Rf8+ {[%emt 0:04:34]} Kxf8 {[%emt 0:00:10][%cal Be8f8,Bf8f7,Bf7g6,Bg6h7][%mdl 32]} 23. Qxd8+ {[%emt 0:00:06]} Kf7 {[%emt 0:00:06]} 24. Rf1+ {[%emt 0:00:17]} (24. Qxd4 $2 {is the wrong capture.} Rxh2+ 25. Kg1 Rh1+ 26. Kf2 Rxa1 $19) 24... Kg6 {[%emt 0:00:08]} 25. Qe8+ $2 {[%emt 0:00:34][%mdl 8192]} (25. Qxc7 $2 {leads to mate.} Rxh2+ 26. Kg1 Rh1+ 27. Kf2 Qe3#) (25. h3 $11) 25... Kh7 $18 {[%emt 0:01:14]} 26. h3 {[%emt 0:01:17]} Rxh3+ {[%emt 0:01:48]} 27. gxh3 {[%emt 0:00:11]} Qxh3+ {[%emt 0:00:03][%mdl 32768] Weighted Error Value: White=0.02 (flawless) /Black=0.00 (flawless) .  Loses game:     	---       	Black=1      Mistake:       	White=1     	---        OK:         	White=11    	Black=10     Best:        	White=2     	Black=3      Strong:       	White=1     	Black=3     . An unexpected result.} 1/2-1/2